fUSD/lending_fUSD_20260426
["ID","MTS","AMOUNT","RATE_DAILY","PERIOD"]
[421147197,1777161132320,-408.57,0.0004,120]
[421147198,1777161132330,-434.47,0.0004,120]
[421147199,1777161132340,-2827.51,0.0004,120]
[421147200,1777161132349,-979.62,0.0004,120]
[421147201,1777161132359,-774.44,0.0004,120]
[421147202,1777161132369,-1644.49,0.0004,120]
[421147203,1777161132379,-1733.87,0.0004,120]
[421147204,1777161132388,-690.76,0.0004,120]
[421147205,1777161132398,-337.62,0.0004,120]
[421147206,1777161132408,-213.57,0.0004,120]
[421147207,1777161132417,-379.96,0.0004,120]
[421147208,1777161132427,-484.43,0.00040026,90]
[421147209,1777161132436,-6606.6304,0.00040027,2]
[421147210,1777161132447,-150.42984125,0.00040028,120]
[421147211,1777161132456,-173.92841366,0.00040028,120]
[421147212,1777161132466,-157.29380821,0.00040028,120]
[421147213,1777161132476,-290.40661129,0.00040028,120]
[421147214,1777161132486,-178.70231603,0.00040028,120]
[421147215,1777161132496,-160.93291203,0.00040028,120]
[421147216,1777161132505,-187.14239629,0.00040028,120]
[421147217,1777161132515,-4602.73052107,0.00040028,120]
[421147218,1777161132524,-9999.95,0.00040028,120]
[421147219,1777161132534,-3333.31666667,0.00040028,120]
[421147220,1777161132544,-166.66583333,0.00040028,120]
[421147221,1777161132554,-157.18181311,0.00040066,2]
[421147222,1777161132564,-233.0,0.00040095,120]
[421147223,1777161132575,-233.0,0.00040095,120]
[421147224,1777161132585,-242.0,0.00040095,120]
[421147225,1777161132596,-579.45494694,0.00040099,7]
[421147226,1777161132606,-759.0,0.000401,30]
[421147227,1777161132617,-436.77,0.0004011,120]
[421147228,1777161132627,-150.0,0.00040165,2]
[421147229,1777161132637,-6606.6304,0.00040165,2]
[421147230,1777161132649,-250.0,0.00040168,71]
[421147231,1777161132659,-280.0,0.00040177,71]
[421147232,1777161132670,-25000.0,0.000402,30]
[421147233,1777161132680,-1111.10555556,0.00040274,30]
[421147234,1777161132691,-1500.0,0.000403,61]
[421147235,1777161132701,-10000.0,0.000403,120]
[421147236,1777161132712,-150.42984125,0.00040302,120]
[421147237,1777161132723,-290.40661129,0.00040302,120]
[421147238,1777161132734,-178.70231603,0.00040302,120]
[421147239,1777161132745,-160.93291203,0.00040302,120]
[421147240,1777161132755,-187.14239629,0.00040302,120]
[421147241,1777161132766,-4602.73052107,0.00040302,120]
[421147242,1777161132777,-3333.31666667,0.00040302,120]
[421147243,1777161132788,-166.66583333,0.00040302,120]
[421147244,1777161132799,-6606.6304,0.00040304,2]
[421147245,1777161132810,-478.08,0.00040331,7]
[421147246,1777161132821,-157.18181311,0.0004034,2]
[421147247,1777161132832,-205.96,0.00040351,30]
[421147248,1777161132843,-500.0,0.00040352,30]
[421147249,1777161132854,-186.54,0.00040352,30]
[421147250,1777161132865,-924.9,0.00040353,120]
[421147251,1777161132876,-500.0,0.00040354,30]
[421147252,1777161132888,-500.0,0.00040354,30]
[421147253,1777161132899,-500.0,0.00040354,30]
[421147254,1777161132911,-500.0,0.00040354,30]
[421147255,1777161132922,-1500.0,0.000404,61]
[421147256,1777161132933,-15000.0,0.000404,61]
[421147257,1777161132945,-354.1625,0.000404,120]
[421147258,1777161132955,-307.4943,0.000404,120]
[421147259,1777161132967,-1191.1299,0.000404,120]
[421147260,1777161132978,-590.3754,0.000404,120]
[421147261,1777161132989,-1786.583,0.000404,120]
[421147262,1777161133000,-1786.58,0.000404,30]
[421147263,1777161133011,-1482.615,0.000404,30]
[421147264,1777161133022,-1482.61,0.000404,60]
[421147265,1777161133033,-501.09283056,0.00040411,30]
[421147266,1777161133044,-202.2159485,0.00040436,120]
[421147267,1777161133055,-6606.6304,0.00040442,2]
[421147268,1777161133067,-150.0,0.00040443,2]
[421147269,1777161133078,-924.9,0.00040453,120]
[421147270,1777161133088,-528.0,0.00040455,90]
[421147271,1777161133100,-180000.0,0.000405,61]
[421147272,1777161133111,-233.0,0.000405,120]
[421147273,1777161133123,-242.0,0.000405,120]
[421147274,1777161133134,-1746.63185966,0.000405,120]
[421147275,1777161133145,-1111.10555556,0.00040548,30]
[421147276,1777161133157,-924.9,0.00040553,120]
[421147277,1777161133168,-157.29380821,0.00040576,120]
[421147278,1777161133180,-290.40661129,0.00040576,120]
[421147279,1777161133192,-178.70231603,0.00040576,120]
[421147280,1777161133204,-160.93291203,0.00040576,120]
[421147281,1777161133215,-187.14239629,0.00040576,120]
[421147282,1777161133226,-4602.73052107,0.00040576,120]
[421147283,1777161133237,-9999.95,0.00040576,120]
[421147284,1777161133248,-3333.31666667,0.00040576,120]
[421147285,1777161133259,-166.66583333,0.00040576,120]
[421147286,1777161133270,-6606.6304,0.00040581,2]
[421147287,1777161133281,-500.0,0.00040588,7]
[421147288,1777161133293,-10000.0,0.000406,120]
[421147289,1777161133305,-1346.69158152,0.000406,120]
[421147290,1777161133316,-171.0,0.000406,120]
[421147291,1777161133327,-157.18181311,0.00040614,2]
[421147292,1777161133338,-924.9,0.00040653,120]
[421147293,1777161133350,-273.23958655,0.000407,6]
[421147294,1777161133361,-6606.6316,0.00040719,2]
[421147295,1777161133373,-271.04341287,0.0004075,120]
[421147296,1777161133384,-924.9,0.00040753,120]
[421147297,1777161133395,-20120.86257362,0.000408,90]
[421147298,1777161133407,-153.0,0.000408,120]
[421147299,1777161133418,-2158.123,0.000408,60]
[421147300,1777161133430,-2158.123,0.000408,60]
[421147301,1777161133441,-2158.12,0.000408,60]
[421147302,1777161133453,-1111.10555556,0.00040822,30]
[421147303,1777161133465,-166.66583333,0.00040822,30]
[421147304,1777161133477,-1000.0,0.00040822,15]
[421147305,1777161133488,-3000.0,0.00040822,15]
[421147306,1777161133499,-629.34,0.0004083,120]
[421147307,1777161133511,-290.40661129,0.0004085,120]
[421147308,1777161133522,-178.70231603,0.0004085,120]
[421147309,1777161133533,-187.14239629,0.0004085,120]
[421147310,1777161133544,-4602.73052107,0.0004085,120]
[421147311,1777161133556,-9999.95,0.0004085,120]
[421147312,1777161133568,-3333.31666667,0.0004085,120]
[421147313,1777161133579,-166.66583333,0.0004085,120]
[421147314,1777161133591,-924.9,0.00040853,120]
[421147315,1777161133603,-500.0,0.00040853,60]
[421147316,1777161133615,-352.29,0.00040883,30]
[421147317,1777161133626,-157.18181311,0.00040888,2]
[421147318,1777161133638,-12789.35065079,0.000409,120]
[421147319,1777161133649,-10000.0,0.000409,120]
[421147320,1777161133660,-5000.0,0.000409,120]
[421147321,1777161133671,-167.2,0.000409,120]
[421147322,1777161133683,-52884.80439761,0.000409,120]
[421147323,1777161133695,-870.21489776,0.000409,120]
[421147324,1777161133706,-2210.43337129,0.000409,120]
[421147325,1777161133717,-208.0,0.0004093,30]
[421147326,1777161133728,-300.0,0.00040943,2]
[421147327,1777161133739,-300.0,0.00040943,2]
[421147328,1777161133750,-300.0,0.00040943,2]
[421147329,1777161133761,-300.0,0.00040943,2]
[421147330,1777161133772,-271.46,0.00040943,2]
[421147331,1777161133783,-300.0,0.00040943,2]
[421147332,1777161133795,-330.06,0.00040943,2]
[421147333,1777161133806,-341844.0,0.0004095,60]
[421147334,1777161133817,-924.9,0.00040953,120]
[421147335,1777161133829,-222.409637,0.00040964,53]
[421147336,1777161133840,-1000.0,0.0004098,120]
[421147337,1777161133852,-1000.0,0.0004098,120]
[421147338,1777161133863,-1000.0,0.0004098,120]
[421147339,1777161133874,-1000.0,0.0004098,120]
[421147340,1777161133885,-50000.0,0.00041,34]
[421147341,1777161133896,-50000.0,0.00041,36]
[421147342,1777161133907,-50000.0,0.00041,39]
[421147343,1777161133918,-902047.31236513,0.00041,120]
[421147344,1777161133929,-140145.0,0.00041,60]
[421147345,1777161133941,-300.37252059,0.00041,120]
[421147346,1777161133952,-2000.0,0.00041,60]
[421147347,1777161133964,-578.96888511,0.00041,30]
[421147348,1777161133975,-49917.0,0.00041,120]
[421147349,1777161133987,-2842.73522754,0.00041,120]
[421147350,1777161134000,-30000.0,0.00041,30]
[421147351,1777161134011,-250000.0,0.00041,30]
[421147352,1777161134024,-168.13,0.00041,5]
[421147353,1777161134035,-500.0,0.00041,45]
[421147354,1777161134047,-358.85325774,0.00041,120]
[421147355,1777161134058,-842.34181336,0.00041,120]
[421147356,1777161134070,-438.54348357,0.00041,5]
[421147357,1777161134081,-500.0,0.00041,45]
[421147358,1777161134093,-2000.0,0.00041,120]
[421147359,1777161134105,-1000.0,0.00041,120]
[421147360,1777161134117,-500.0,0.00041,120]
[421147361,1777161134130,-1000.0,0.00041,120]
[421147362,1777161134141,-126648.71673146,0.00041,14]
[421147363,1777161134152,-1000.0,0.00041,120]
[421147364,1777161134165,-500.0,0.00041,120]
[421147365,1777161134177,-200.9120552,0.00041,120]
[421147366,1777161134189,-630.39160037,0.00041,30]
[421147367,1777161134201,-2086.43440577,0.00041,120]
[421147368,1777161134213,-41800.0,0.00041,90]
[421147369,1777161134224,-48894.0,0.00041,120]
[421147370,1777161134235,-150.0,0.00041,5]
[421147371,1777161134247,-163000.70741847,0.00041,120]
[421147372,1777161134259,-1224.06341881,0.00041,2]
[421147373,1777161134271,-446.58,0.00041,120]
[421147374,1777161134282,-233.0,0.00041,120]
[421147375,1777161134293,-242.0,0.00041,120]
[421147376,1777161134305,-950.0,0.00041,2]
[421147377,1777161134316,-280.0,0.00041019,88]
[421147378,1777161134327,-1103.5,0.00041041,30]
[421147379,1777161134338,-1316.89235118,0.00041047,30]
[421147380,1777161134350,-924.9,0.00041053,120]
[421147381,1777161134361,-166.66583323,0.00041061,120]
[421147382,1777161134373,-500.0,0.00041095,2]
[421147383,1777161134384,-500.0,0.00041095,2]
[421147384,1777161134395,-500.0,0.00041095,2]
[421147385,1777161134407,-500.0,0.00041095,2]
[421147386,1777161134419,-500.0,0.00041095,2]
[421147387,1777161134430,-500.0,0.00041095,2]
[421147388,1777161134441,-156.47575255,0.00041095,2]
[421147389,1777161134453,-500.0,0.00041095,2]
[421147390,1777161134465,-500.0,0.00041095,2]
[421147391,1777161134477,-500.0,0.00041095,2]
[421147392,1777161134488,-500.0,0.00041095,2]
[421147393,1777161134500,-500.0,0.00041095,2]
[421147394,1777161134512,-500.0,0.00041095,2]
[421147395,1777161134524,-500.0,0.00041095,2]
[421147396,1777161134536,-500.0,0.00041095,2]
[421147397,1777161134548,-500.0,0.00041095,2]
[421147398,1777161134560,-500.0,0.00041095,2]
[421147399,1777161134572,-196.66420428,0.00041095,2]
[421147400,1777161134583,-500.0,0.00041095,2]
[421147401,1777161134594,-500.0,0.00041095,2]
[421147402,1777161134606,-500.0,0.00041095,2]
[421147403,1777161134617,-500.0,0.00041095,2]
[421147404,1777161134630,-500.0,0.00041095,2]
[421147405,1777161134641,-200.0,0.00041095,2]
[421147406,1777161134652,-500.0,0.00041095,120]
[421147407,1777161134663,-500.0,0.00041095,120]
[421147408,1777161134674,-500.0,0.00041095,120]
[421147409,1777161134686,-500.0,0.00041095,120]
[421147410,1777161134697,-500.0,0.00041095,120]
[421147411,1777161134709,-500.0,0.00041095,120]
[421147412,1777161134720,-500.0,0.00041095,120]
[421147413,1777161134732,-500.0,0.00041095,120]
[421147414,1777161134744,-500.0,0.00041095,120]
[421147415,1777161134755,-500.0,0.00041095,120]
[421147416,1777161134766,-500.0,0.00041095,120]
[421147417,1777161134778,-500.0,0.00041095,120]
[421147418,1777161134789,-500.0,0.00041095,120]
[421147419,1777161134800,-500.0,0.00041095,120]
[421147420,1777161134811,-500.0,0.00041095,120]
[421147421,1777161134823,-500.0,0.00041095,120]
[421147422,1777161134834,-500.0,0.00041095,120]
[421147423,1777161134845,-500.0,0.00041095,120]
[421147424,1777161134857,-500.0,0.00041095,120]
[421147425,1777161134868,-500.0,0.00041095,120]
[421147426,1777161134880,-500.0,0.00041095,120]
[421147427,1777161134891,-500.0,0.00041095,120]
[421147428,1777161134902,-500.0,0.00041095,120]
[421147429,1777161134913,-500.0,0.00041095,120]
[421147430,1777161134924,-500.0,0.00041095,120]
[421147431,1777161134935,-500.0,0.00041095,120]
[421147432,1777161134947,-500.0,0.00041095,120]
[421147433,1777161134957,-500.0,0.00041095,120]
[421147434,1777161134968,-500.0,0.00041095,120]
[421147435,1777161134979,-500.0,0.00041095,120]
[421147436,1777161134990,-500.0,0.00041095,120]
[421147437,1777161135002,-500.0,0.00041095,120]
[421147438,1777161135015,-500.0,0.00041095,120]
[421147439,1777161135026,-500.0,0.00041095,120]
[421147440,1777161135038,-500.0,0.00041095,120]
[421147441,1777161135474,-395.02010847,0.00041095,120]
[421147442,1777161135487,-500.0,0.00041095,120]
[421147443,1777161135498,-500.0,0.00041095,120]
[421147444,1777161135507,-500.0,0.00041095,120]
[421147445,1777161135517,-500.0,0.00041095,120]
[421147446,1777161135527,-500.0,0.00041095,120]
[421147447,1777161135537,-500.0,0.00041095,120]
[421147448,1777161135547,-500.0,0.00041095,120]
[421147449,1777161135556,-500.0,0.00041095,120]
[421147450,1777161135566,-500.0,0.00041095,120]
[421147451,1777161135576,-500.0,0.00041095,120]
[421147452,1777161135586,-500.0,0.00041095,2]
[421147453,1777161135595,-500.0,0.00041095,2]
[421147454,1777161135605,-500.0,0.00041095,2]
[421147455,1777161135615,-500.0,0.00041095,2]
[421147456,1777161135625,-478.0,0.00041095,2]
[421147457,1777161135634,-1000.0,0.00041095,30]
[421147458,1777161135644,-1000.0,0.00041095,30]
[421147459,1777161135655,-1000.0,0.00041095,30]
[421147460,1777161135664,-1000.0,0.00041095,30]
[421147461,1777161135673,-1000.0,0.00041095,30]
[421147462,1777161135683,-1000.0,0.00041095,30]
[421147463,1777161135693,-1000.0,0.00041095,30]
[421147464,1777161135703,-1000.0,0.00041095,30]
[421147465,1777161135713,-1000.0,0.00041095,30]
[421147466,1777161135723,-1000.0,0.00041095,30]
[421147467,1777161135733,-1000.0,0.00041095,30]
[421147468,1777161135743,-1000.0,0.00041095,30]
[421147469,1777161135753,-1000.0,0.00041095,30]
[421147470,1777161135763,-1000.0,0.00041095,30]
[421147471,1777161135772,-1000.0,0.00041095,30]
[421147472,1777161135782,-1000.0,0.00041095,30]
[421147473,1777161135792,-1000.0,0.00041095,30]
[421147474,1777161135801,-1000.0,0.00041095,30]
[421147475,1777161135812,-1000.0,0.00041095,30]
[421147476,1777161135822,-1000.0,0.00041095,30]
[421147477,1777161135832,-1000.0,0.00041095,30]
[421147478,1777161135842,-1000.0,0.00041095,30]
[421147479,1777161135852,-1000.0,0.00041095,30]
[421147480,1777161135862,-1000.0,0.00041095,30]
[421147481,1777161135872,-1000.0,0.00041095,30]
[421147482,1777161135882,-1000.0,0.00041095,30]
[421147483,1777161135892,-1000.0,0.00041095,30]
[421147484,1777161135902,-1000.0,0.00041095,30]
[421147485,1777161135913,-1000.0,0.00041095,30]
[421147486,1777161135923,-1000.0,0.00041095,30]
[421147487,1777161135933,-1000.0,0.00041095,30]
[421147488,1777161135943,-1000.0,0.00041095,30]
[421147489,1777161135953,-1000.0,0.00041095,30]
[421147490,1777161135964,-1000.0,0.00041095,30]
[421147491,1777161135974,-1000.0,0.00041095,30]
[421147492,1777161135984,-529.49865988,0.00041095,30]
[421147493,1777161135994,-500.0,0.00041095,2]
[421147494,1777161136004,-500.0,0.00041095,2]
[421147495,1777161136015,-500.0,0.00041095,2]
[421147496,1777161136025,-500.0,0.00041095,2]
[421147497,1777161136035,-500.0,0.00041095,2]
[421147498,1777161136045,-500.0,0.00041095,2]
[421147499,1777161136055,-276.49795588,0.00041095,2]
[421147500,1777161136066,-300.0,0.00041095,2]
[421147501,1777161136076,-300.0,0.00041095,2]
[421147502,1777161136086,-300.0,0.00041095,2]
[421147503,1777161136096,-300.0,0.00041095,2]
[421147504,1777161136105,-300.0,0.00041095,2]
[421147505,1777161136115,-300.0,0.00041095,2]
[421147506,1777161136125,-300.0,0.00041095,2]
[421147507,1777161136135,-300.0,0.00041095,2]
[421147508,1777161136144,-300.0,0.00041095,2]
[421147509,1777161136154,-300.0,0.00041095,2]
[421147510,1777161136164,-300.0,0.00041095,2]
[421147511,1777161136174,-300.0,0.00041095,2]
[421147512,1777161136184,-300.0,0.00041095,2]
[421147513,1777161136193,-444.45484804,0.00041095,2]
[421147514,1777161136203,-500.0,0.00041095,120]
[421147515,1777161136214,-500.0,0.00041095,120]
[421147516,1777161136224,-1127.58250445,0.00041096,30]
[421147517,1777161136234,-1030.0,0.00041096,28]
[421147518,1777161136244,-500.0,0.00041096,30]
[421147519,1777161136253,-200.0,0.00041096,32]
[421147520,1777161136263,-520.0,0.00041096,32]
[421147521,1777161136272,-200.0,0.00041096,32]
[421147522,1777161136282,-500.0,0.00041096,32]
[421147523,1777161136292,-696.17484169,0.00041096,32]
[421147524,1777161136302,-151.0,0.00041096,31]
[421147525,1777161136311,-151.0,0.00041096,32]
[421147526,1777161136321,-500.0,0.00041096,30]
[421147527,1777161136331,-518.5,0.00041096,29]
[421147528,1777161136341,-200.0,0.00041096,28]
[421147529,1777161136351,-6888.0,0.00041096,29]
[421147530,1777161136360,-200.0,0.00041096,32]
[421147531,1777161136370,-1068.11,0.00041096,31]
[421147532,1777161136380,-539.24,0.00041096,29]
[421147533,1777161136390,-500.0,0.00041096,30]
[421147534,1777161136399,-151.0,0.00041096,31]
[421147535,1777161136409,-156.587,0.00041096,29]
[421147536,1777161136418,-500.0,0.00041096,28]
[421147537,1777161136428,-537.6845,0.00041096,32]
[421147538,1777161136438,-200.0,0.00041096,30]
[421147539,1777161136447,-7142.856,0.00041096,28]
[421147540,1777161136458,-200.0,0.00041096,31]
[421147541,1777161136467,-559.19188,0.00041096,31]
[421147542,1777161136476,-500.0,0.00041096,29]
[421147543,1777161136486,-151.0,0.00041096,31]
[421147544,1777161136496,-1107.63007,0.00041096,31]
[421147545,1777161136505,-500.0,0.00041096,31]
[421147546,1777161136515,-557.5788265,0.00041096,32]
[421147547,1777161136524,-200.0,0.00041096,31]
[421147548,1777161136534,-200.0,0.00041096,32]
[421147549,1777161136544,-500.0,0.00041096,29]
[421147550,1777161136554,-162.380719,0.00041096,28]
[421147551,1777161136564,-7407.141672,0.00041096,30]
[421147552,1777161136574,-151.0,0.00041096,30]
[421147553,1777161136583,-1148.61238259,0.00041096,30]
[421147554,1777161136594,-579.88197956,0.00041096,32]
[421147555,1777161136603,-200.0,0.00041096,30]
[421147556,1777161136614,-200.0,0.00041096,31]
[421147557,1777161136624,-500.0,0.00041096,29]
[421147558,1777161136634,-168.3888056,0.00041096,28]
[421147559,1777161136644,-500.0,0.00041096,30]
[421147560,1777161136654,-7681.20591386,0.00041096,29]
[421147561,1777161136664,-151.0,0.00041096,29]
[421147562,1777161136674,-200.0,0.00041096,29]
[421147563,1777161136684,-1191.11104075,0.00041096,31]
[421147564,1777161136694,-200.0,0.00041096,30]
[421147565,1777161136704,-500.0,0.00041096,31]
[421147566,1777161136714,-174.61919141,0.00041096,29]
[421147567,1777161136723,-500.0,0.00041096,28]
[421147568,1777161136733,-151.0,0.00041096,29]
[421147569,1777161136743,-7965.41053268,0.00041096,28]
[421147570,1777161136752,-200.0,0.00041096,30]
[421147571,1777161136761,-1235.18214925,0.00041096,31]
[421147572,1777161136771,-181.08010149,0.00041096,31]
[421147573,1777161136781,-500.0,0.00041096,31]
[421147574,1777161136790,-500.0,0.00041096,28]
[421147575,1777161136800,-151.0,0.00041096,29]
[421147576,1777161136810,-8260.13072239,0.00041096,31]
[421147577,1777161136820,-200.0,0.00041096,29]
[421147578,1777161136830,-1280.88388878,0.00041096,31]
[421147579,1777161136840,-187.78006526,0.00041096,31]
[421147580,1777161136851,-8565.75555911,0.00041096,29]
[421147581,1777161136861,-200.0,0.00041096,31]
[421147582,1777161136870,-200.0,0.00041096,29]
[421147583,1777161136881,-200.0,0.00041096,32]
[421147584,1777161136890,-200.0,0.00041096,28]
[421147585,1777161136899,-151.0,0.00041096,32]
[421147586,1777161136909,-200.0,0.00041096,31]
[421147587,1777161136918,-151.0,0.00041096,31]
[421147588,1777161136928,-220.0,0.00041096,31]
[421147589,1777161136938,-200.0,0.00041096,28]
[421147590,1777161136947,-152.0,0.00041096,28]
[421147591,1777161136956,-151.0,0.00041096,31]
[421147592,1777161136965,-266.58426341,0.00041096,31]
[421147593,1777161136975,-151.0,0.00041096,30]
[421147594,1777161136984,-500.0,0.00041096,30]
[421147595,1777161136994,-200.0,0.00041096,30]
[421147596,1777161137004,-220.0,0.00041096,30]
[421147597,1777161137014,-519.0,0.00041096,30]
[421147598,1777161137024,-152.0,0.00041096,30]
[421147599,1777161137034,-151.0,0.00041096,28]
[421147600,1777161137045,-151.0,0.00041096,32]
[421147601,1777161137054,-220.0,0.00041096,31]
[421147602,1777161137064,-200.0,0.00041096,29]
[421147603,1777161137074,-519.0,0.00041096,30]
[421147604,1777161137084,-151.0,0.00041096,30]
[421147605,1777161137095,-152.0,0.00041096,28]
[421147606,1777161137105,-151.0,0.00041096,28]
[421147607,1777161137116,-200.0,0.00041096,29]
[421147608,1777161137127,-220.0,0.00041096,31]
[421147609,1777161137138,-519.0,0.00041096,28]
[421147610,1777161137149,-152.0,0.00041096,31]
[421147611,1777161137161,-601.3376128,0.00041096,30]
[421147612,1777161137173,-151.0,0.00041096,29]
[421147613,1777161137184,-151.0,0.00041096,29]
[421147614,1777161137194,-200.0,0.00041096,31]
[421147615,1777161137203,-220.0,0.00041096,29]
[421147616,1777161137214,-519.0,0.00041096,31]
[421147617,1777161137224,-623.58710448,0.00041096,29]
[421147618,1777161137233,-151.0,0.00041096,31]
[421147619,1777161137243,-152.0,0.00041096,28]
[421147620,1777161137252,-151.0,0.00041096,32]
[421147621,1777161137262,-200.0,0.00041096,29]
[421147622,1777161137271,-220.0,0.00041096,30]
[421147623,1777161137280,-519.0,0.00041096,32]
[421147624,1777161137290,-152.0,0.00041096,32]
[421147625,1777161137299,-646.65982734,0.00041096,30]
[421147626,1777161137308,-200.0,0.00041096,29]
[421147627,1777161137317,-220.0,0.00041096,28]
[421147628,1777161137327,-152.0,0.00041096,29]
[421147629,1777161137338,-519.0,0.00041096,30]
[421147630,1777161137347,-339.58587405,0.00041096,28]
[421147631,1777161137357,-286.24885466,0.00041096,31]
[421147632,1777161137366,-4056.55936814,0.00041096,31]
[421147633,1777161137375,-519.0,0.00041096,31]
[421147634,1777161137384,-8681.81576316,0.00041096,30]
[421147635,1777161137394,-519.0,0.00041096,31]
[421147636,1777161137403,-500.0,0.00041096,30]
[421147637,1777161137412,-519.0,0.00041096,32]
[421147638,1777161137421,-500.0,0.00041096,30]
[421147639,1777161137431,-500.0,0.00041096,32]
[421147640,1777161137440,-500.0,0.00041096,32]
[421147641,1777161137450,-519.0,0.00041096,32]
[421147642,1777161137459,-170.0,0.00041096,32]
[421147643,1777161137468,-500.0,0.00041096,30]
[421147644,1777161137477,-500.0,0.00041096,32]
[421147645,1777161137486,-620.0,0.00041096,29]
[421147646,1777161137495,-519.0,0.00041096,32]
[421147647,1777161137504,-176.29,0.00041096,28]
[421147648,1777161137513,-500.0,0.00041096,30]
[421147649,1777161137523,-500.0,0.00041096,28]
[421147650,1777161137532,-642.94,0.00041096,32]
[421147651,1777161137542,-519.0,0.00041096,28]
[421147652,1777161137551,-182.81273,0.00041096,30]
[421147653,1777161137560,-500.0,0.00041096,30]
[421147654,1777161137570,-666.72878,0.00041096,31]
[421147655,1777161137579,-500.0,0.00041096,28]
[421147656,1777161137588,-189.57680101,0.00041096,30]
[421147657,1777161137597,-519.0,0.00041096,30]
[421147658,1777161137606,-500.0,0.00041096,31]
[421147659,1777161137616,-691.39774486,0.00041096,31]
[421147660,1777161137625,-500.0,0.00041096,29]
[421147661,1777161137635,-196.59114265,0.00041096,30]
[421147662,1777161137644,-519.0,0.00041096,31]
[421147663,1777161137654,-497.53950306,0.00041096,30]
[421147664,1777161137664,-716.97946142,0.00041096,31]
[421147665,1777161137673,-151.0,0.00041096,28]
[421147666,1777161137683,-203.86501493,0.00041096,29]
[421147667,1777161137692,-519.0,0.00041096,31]
[421147668,1777161137702,-156.587,0.00041096,28]
[421147669,1777161137711,-211.40802049,0.00041096,28]
[421147670,1777161137721,-519.0,0.00041096,32]
[421147671,1777161137731,-162.380719,0.00041096,28]
[421147672,1777161137741,-160.0,0.00041096,28]
[421147673,1777161137751,-519.0,0.00041096,28]
[421147674,1777161137760,-168.3888056,0.00041096,31]
[421147675,1777161137770,-151.0,0.00041096,30]
[421147676,1777161137780,-160.0,0.00041096,28]
[421147677,1777161137790,-519.0,0.00041096,28]
[421147678,1777161137964,-174.61919141,0.00041096,32]
[421147679,1777161137974,-156.587,0.00041096,29]
[421147680,1777161137984,-160.0,0.00041096,28]
[421147681,1777161137994,-519.0,0.00041096,29]
[421147682,1777161138004,-162.380719,0.00041096,32]
[421147683,1777161138014,-160.0,0.00041096,30]
[421147684,1777161138023,-518.15638555,0.00041096,31]
[421147685,1777161138033,-181.08010149,0.00041096,29]
[421147686,1777161138043,-151.0,0.00041096,31]
[421147687,1777161138052,-168.3888056,0.00041096,28]
[421147688,1777161138062,-160.0,0.00041096,29]
[421147689,1777161138071,-1000.0,0.00041096,28]
[421147690,1777161138081,-187.78006525,0.00041096,29]
[421147691,1777161138090,-151.0,0.00041096,29]
[421147692,1777161138099,-174.61919141,0.00041096,31]
[421147693,1777161138109,-160.0,0.00041096,30]
[421147694,1777161138118,-1000.0,0.00041096,30]
[421147695,1777161138127,-151.0,0.00041096,30]
[421147696,1777161138136,-181.08010149,0.00041096,31]